bitfinex-derivatives/quotes_SOLF0:USTF0_20251211
["timestamp","ask_amount","ask_price","bid_price","bid_amount"]
[1765436444715,0.05539266,131.01,130.99,10.0999]
[1765436445014,0.05539266,131.01,131.0,3.23]
[1765436450229,3.3,131.06,131.02,3.23]
[1765436451428,3.3582127,131.05,131.03,0.04922403]
[1765436453331,3.3582127,131.05,131.03,3.27922403]
[1765436455930,3.3582127,131.05,131.03,0.04922403]
[1765436457324,3.3,131.04,131.03,0.04922403]
[1765436461534,3.3,131.03,131.0,3.23]
[1765436462545,3.3,131.03,131.0,3.28077895]
[1765436464443,3.3,131.03,131.0,0.05077895]
[1765436464749,3.43,131.02,131.0,0.05077895]
[1765436464935,3.48332156,131.02,131.0,0.05077895]
[1765436465131,3.43,131.0,130.96,3.14]
[1765436465435,3.43,130.98,130.94,3.14]
[1765436466245,3.43,130.96,130.95,0.05144353]
[1765436468046,0.05243715,130.97,130.95,0.05144353]
[1765436468245,3.48243715,130.97,130.95,0.05144353]
[1765436472147,3.48243715,130.97,130.95,3.19144353]
[1765436472741,3.48243715,130.97,130.95,0.05144353]
[1765436474947,3.43,130.96,130.95,0.05144353]
[1765436479146,3.36243715,130.97,130.95,3.32144353]
[1765436480649,3.36243715,130.97,130.95,0.05144353]
[1765436483652,3.36243715,130.97,130.95,3.32144353]
[1765436483848,5.60771383,130.96,130.95,0.05144353]
[1765436489659,3.31,130.96,130.95,0.05144353]
[1765436490356,3.31,131.0,130.96,3.27]
[1765436490563,3.31,131.0,130.97,5.56771383]
[1765436491358,3.35804709,131.0,130.97,5.56771383]
[1765436494570,3.35804709,131.0,130.98,3.27]
[1765436494772,3.35804709,131.0,130.98,3.32617344]
[1765436494977,0.04804709,131.0,130.98,3.32617344]
[1765436495270,3.30804709,131.0,130.98,3.32617344]
[1765436497070,0.04804709,131.0,130.98,3.32617344]
[1765436499878,3.30804709,131.0,130.98,3.32617344]
[1765436511981,0.04804709,131.0,130.98,3.32617344]
[1765436518780,0.04804709,131.0,130.98,10.19677344]
[1765436518985,0.04804709,131.0,130.99,3.27]
[1765436521592,3.30804709,131.0,130.98,0.05617344]
[1765436521776,3.30804709,131.0,130.98,3.32617344]
[1765436525596,3.30804709,131.0,130.98,0.05617344]
[1765436526094,3.30804709,131.0,130.98,3.49617344]
[1765436536103,0.04804709,131.0,130.98,3.49617344]
[1765436537305,3.22804709,131.0,130.98,0.05617344]
[1765436537601,3.18,130.99,130.98,0.05617344]
[1765436538505,3.22804709,131.0,130.98,3.49617344]
[1765436542504,3.22804709,131.0,130.96,3.22]
[1765436543508,3.22804709,131.0,130.97,3.27039857]
[1765436545409,10.09784709,131.0,130.97,0.05039857]
[1765436545612,3.41,130.99,130.97,0.05039857]
[1765436545801,3.41,130.99,130.97,3.27039857]
[1765436548514,3.41,130.99,130.97,0.05039857]
[1765436548905,3.41,130.99,130.97,3.27039857]
[1765436549106,3.45804709,131.0,130.97,3.27039857]
[1765436551315,10.32774709,131.0,130.97,3.27039857]
[1765436551514,3.41,130.99,130.97,3.27039857]
[1765436551901,3.41,130.98,130.97,0.05039857]
[1765436553719,3.41,130.96,130.93,3.22]
[1765436554614,3.46442363,130.96,130.93,3.27786956]
[1765436554823,3.14,130.94,130.93,0.05786956]
[1765436555114,10.0124,130.95,130.93,3.33786956]
[1765436555617,3.14,130.94,130.93,3.33786956]
[1765436556417,10.06662363,130.96,130.93,3.33786956]
[1765436556618,3.14,130.95,130.93,3.33786956]
[1765436557217,3.14,130.94,130.93,3.33786956]
[1765436558020,10.0124,130.95,130.93,3.33786956]
[1765436558209,3.14,130.94,130.93,3.33786956]
[1765436559818,3.19442363,130.96,130.93,3.33786956]
[1765436561922,3.19442363,130.96,130.93,0.05786956]
[1765436562119,3.19442363,130.96,130.93,3.33786956]
[1765436562320,3.14,130.95,130.93,3.33786956]
[1765436566723,6.92642363,130.96,130.93,3.33786956]
[1765436566724,3.19442363,130.96,130.93,3.33786956]
[1765436566914,0.05442363,130.96,130.93,3.33786956]
[1765436567721,0.05442363,130.96,130.95,3.28]
[1765436568616,6.8694,131.01,130.96,3.28]
[1765436569119,10.0094,131.01,130.96,3.28]
[1765436569625,3.14,131.0,130.96,3.28]
[1765436569826,3.19427707,131.0,130.98,3.28]
[1765436570728,0.05427707,131.0,130.98,3.28]
[1765436582031,3.14,131.05,130.99,3.28]
[1765436582640,3.14,131.05,131.0,3.28]
[1765436583133,10.06103189,131.04,131.01,3.33255033]
[1765436583339,3.14,131.02,131.01,0.05255033]
[1765436585238,3.14,131.02,130.98,3.28]
[1765436586344,3.39,131.0,130.99,0.05282602]
[1765436588442,3.43872446,131.01,130.99,3.28282602]
[1765436591348,3.43872446,131.01,130.99,0.05282602]
[1765436598863,3.39,131.0,130.99,0.05282602]
[1765436599161,5.6861757,131.0,130.99,0.05282602]
[1765436604075,3.39,131.0,130.99,3.28282602]
[1765436604575,3.39,131.0,130.99,0.05282602]
[1765436607573,0.04872446,131.01,130.99,3.28282602]
[1765436608970,0.04872446,131.01,130.99,10.15272602]
[1765436609572,3.43872446,131.01,130.99,10.15272602]
[1765436609777,0.04872446,131.01,131.0,3.23]
[1765436610080,3.43872446,131.01,131.0,3.23]
[1765436611071,0.04872446,131.01,131.0,3.23]
[1765436612071,3.43872446,131.01,131.0,3.23]
[1765436612375,3.43872446,131.01,130.99,3.28282602]
[1765436612770,0.04872446,131.01,130.99,3.28282602]
[1765436613672,0.04872446,131.01,130.99,10.15282602]
[1765436613872,0.04872446,131.01,131.0,5.7361757]
[1765436614572,3.44,131.05,131.01,3.43]
[1765436614778,3.44,131.05,131.03,3.43]
[1765436615376,6.8658,131.08,131.03,3.43]
[1765436615582,0.04975396,131.07,131.05,3.43]
[1765436615882,3.48975396,131.07,131.05,3.43]
[1765436616267,0.04975396,131.07,131.05,3.43]
[1765436617574,3.48975396,131.07,131.05,3.43]
[1765436618172,0.04975396,131.07,131.05,3.43]
[1765436619485,3.48975396,131.07,131.05,3.43]
[1765436619892,0.04975396,131.07,131.05,3.43]
[1765436621293,0.04975396,131.07,131.05,5.7261757]
[1765436621588,0.04975396,131.07,131.06,3.43]
[1765436626592,3.44,131.11,131.07,3.43]
[1765436627483,2.2961757,131.12,131.08,3.43]
[1765436627685,0.05053636,131.11,131.1,3.43]
[1765436631587,3.49053636,131.11,131.09,3.48753197]
[1765436633290,3.49053636,131.11,131.09,0.05753197]
[1765436634894,10.35453636,131.11,131.09,0.05753197]
[1765436635093,3.44,131.1,131.09,0.05753197]
[1765436637398,3.44,131.1,131.09,3.48753197]
[1765436637703,3.49053636,131.11,131.09,3.48753197]
[1765436640798,0.05053636,131.11,131.09,3.48753197]
[1765436642603,3.44,131.13,131.09,3.48753197]
[1765436642805,74.0183757,131.15,131.1,3.43]
[1765436643106,3.44,131.14,131.1,3.43]
[1765436643602,6.8622,131.15,131.1,3.43]
[1765436643906,0.04880642,131.13,131.1,3.43]
[1765436644807,0.04880642,131.13,131.1,10.2942]
[1765436645007,0.04880642,131.13,131.11,3.14]
[1765436645805,0.04880642,131.13,131.11,10.0037]
[1765436646002,0.04880642,131.13,131.12,3.14]
[1765436648407,3.23880642,131.13,131.1,3.14]
[1765436649695,3.19,131.12,131.09,0.05753197]
[1765436651912,3.19,131.12,131.09,3.19753197]
[1765436652603,3.19,131.12,131.09,0.05753197]
[1765436652801,10.49303573,131.13,131.09,0.05753197]
[1765436652802,3.19,131.1,131.09,0.05753197]
[1765436652997,3.19,131.1,131.05,10.0068]
[1765436652998,3.19,131.1,131.05,3.14]
[1765436653211,3.19,131.08,131.05,3.14]
[1765436653513,3.19,131.08,131.02,3.14]
[1765436653813,3.19,131.06,131.02,3.14]
[1765436654002,0.05169382,131.05,131.03,0.05694781]
[1765436654202,3.24169382,131.05,131.03,0.05694781]
[1765436657217,10.10899382,131.05,131.03,0.05694781]
[1765436657507,3.19,131.04,131.03,0.05694781]
[1765436662408,0.05169382,131.05,131.03,3.39694781]
[1765436663203,3.30169382,131.05,131.03,0.05694781]
[1765436665009,10.16889382,131.05,131.03,0.05694781]
[1765436665315,3.25,131.04,131.03,0.05694781]
[1765436676118,3.37,131.02,130.99,3.34]
[1765436677116,10.29027535,131.02,130.99,0.05655091]
[1765436677326,3.37,131.01,130.99,0.05655091]
[1765436678323,10.2392,131.01,130.99,0.05655091]
[1765436678524,3.37,131.0,130.93,10.0931]
[1765436678835,3.37,131.0,130.93,3.22]
[1765436679519,3.37,130.97,130.93,3.22]
[1765436679719,3.37,130.97,130.95,0.05085562]
[1765436680231,106.8503,131.02,130.95,0.05085562]
[1765436680232,106.7751,131.11,131.05,3.22]
[1765436680420,3.37,131.07,131.01,3.58122931]
[1765436680725,3.37,131.01,130.97,6.80122931]
[1765436680923,3.37,131.01,130.98,3.22]
[1765436681324,3.42080006,131.01,130.99,3.58122931]
[1765436682318,3.42080006,131.01,130.96,3.58122931]
[1765436683133,3.37,131.0,130.96,3.58122931]
[1765436683332,3.37,131.0,130.97,0.0521731]
[1765436686133,10.24,131.0,130.97,0.0521731]
[1765436686337,3.37,130.99,130.97,0.0521731]
[1765436687634,10.2403,130.99,130.97,0.0521731]
[1765436687933,3.37,130.98,130.97,0.0521731]
[1765436688529,3.37,130.98,130.95,3.58122931]
[1765436689436,3.4273922,130.98,130.95,3.63833421]
[1765436690939,3.4273922,130.98,130.95,6.85833421]
[1765436692033,3.4273922,130.98,130.95,3.63833421]
[1765436695836,3.4273922,130.98,130.95,6.85833421]
[1765436696841,3.4273922,130.98,130.95,3.63833421]
[1765436697044,10.2983922,130.98,130.95,0.0571049]
[1765436697237,3.37,130.97,130.95,0.0571049]
[1765436698036,3.37,130.96,130.95,0.0571049]
[1765436704748,3.2173922,130.98,130.96,3.17]
[1765436704936,3.2173922,130.98,130.95,6.80833421]
[1765436705547,3.2173922,130.98,130.96,3.17]
[1765436706954,3.2173922,130.98,130.95,3.2271049]
[1765436710763,3.2173922,130.98,130.96,2.29671149]
[1765436712767,0.0573922,130.98,130.97,3.17]
[1765436716165,3.4873922,130.98,130.95,5.66381639]
[1765436720470,10.3581922,130.98,130.95,5.66381639]
[1765436722063,10.3581922,130.98,130.95,0.0571049]
[1765436722064,3.43,130.97,130.95,0.0571049]
[1765436724880,3.43,130.96,130.95,0.0571049]
[1765436740890,12.44801149,130.97,130.95,3.4571049]
[1765436741091,12.44801149,130.97,130.95,0.0571049]
[1765436741092,3.28,130.96,130.95,0.0571049]
[1765436743178,3.28,130.94,130.9,3.4]
[1765436744193,0.05367447,130.93,130.92,3.4]
[1765436745997,3.33367447,130.93,130.91,3.45584211]
[1765436746494,3.33367447,130.93,130.91,0.05584211]
[1765436746890,3.33367447,130.93,130.91,3.45584211]
[1765436747096,3.33367447,130.93,130.91,0.05584211]
[1765436754603,10.20717447,130.93,130.91,0.05584211]
[1765436755004,3.28,130.92,130.91,0.05584211]
[1765436755907,3.33367447,130.93,130.91,3.45584211]
[1765436760106,0.05367447,130.93,130.92,5.69671149]
[1765436760314,3.28,130.98,130.93,3.4]
[1765436761304,3.28,130.96,130.94,3.45474364]
[1765436763100,3.28,130.96,130.94,0.05474364]
[1765436769308,3.28,130.96,130.94,3.20474364]
[1765436770217,0.05365436,130.97,130.94,3.20474364]
[1765436770606,3.23365436,130.97,130.94,3.20474364]
[1765436773014,3.23365436,130.97,130.94,0.05474364]
[1765436773214,3.23365436,130.97,130.94,3.20474364]
[1765436778420,3.23365436,130.97,130.94,0.05474364]
[1765436778719,3.18,130.96,130.94,0.05474364]
[1765436778920,6.76908352,130.96,130.94,0.05474364]
[1765436779112,3.18,130.95,130.94,0.05474364]
[1765436785126,8.6249313,130.95,130.94,0.05474364]
[1765436785315,3.18,130.95,130.94,0.05474364]
[1765436786416,3.31,130.96,130.94,3.16474364]
[1765436788522,3.31,130.96,130.94,0.05474364]
[1765436791322,3.31,130.96,130.94,3.16474364]
[1765436791527,64.95365436,130.97,130.94,3.16474364]
[1765436791825,3.36365436,130.97,130.94,3.16474364]
[1765436792623,0.05365436,130.97,130.94,3.16474364]
[1765436794133,3.36365436,130.97,130.94,3.16474364]
[1765436794936,10.23505436,130.97,130.94,3.16474364]
[1765436795431,10.07505436,130.97,130.94,3.16474364]
[1765436796624,0.05365436,130.97,130.94,3.16474364]
[1765436799033,0.05365436,130.97,130.95,3.37]
[1765436800139,0.05365436,130.97,130.96,3.37]
[1765436804337,3.20365436,130.97,130.94,3.42474364]
[1765436805734,3.20365436,130.97,130.94,0.05474364]
[1765436805943,10.07525436,130.97,130.94,0.05474364]
[1765436806138,3.15,130.96,130.94,0.05474364]
[1765436808340,10.0219,130.96,130.94,0.05474364]
[1765436808732,3.15,130.95,130.94,0.05474364]
[1765436824939,3.4,130.96,130.94,3.22474364]
[1765436827653,3.45365436,130.97,130.94,3.22474364]
[1765436827856,0.05365436,130.97,130.94,3.22474364]
[1765436828155,0.05365436,130.97,130.96,3.17]
[1765436844471,5.57627498,131.01,130.97,3.39]
[1765436845469,0.05156424,131.0,130.98,3.44480028]
[1765436847068,0.05156424,131.0,130.98,10.31530028]
[1765436847272,0.05156424,131.0,130.99,3.39]
[1765436861977,5.73783922,131.0,130.98,0.05480028]
[1765436862175,3.39,130.99,130.98,0.05480028]
[1765436867091,3.44156424,131.0,130.98,3.28480028]
[1765436867282,0.05156424,131.0,130.98,3.28480028]
[1765436868984,3.44156424,131.0,130.98,3.28480028]
[1765436869491,5.73783922,131.0,130.98,0.05480028]
[1765436869695,3.39,130.99,130.98,0.05480028]
[1765436878000,3.39,130.99,130.98,3.28480028]
[1765436878200,3.44156424,131.0,130.98,3.28480028]
[1765436879402,0.05156424,131.0,130.98,3.28480028]
[1765436879603,0.05156424,131.0,130.98,10.15530028]
[1765436879905,0.05156424,131.0,130.99,3.23]
[1765436892404,3.21,131.03,131.0,3.22]
[1765436892606,3.21,131.04,131.0,3.22]
[1765436893202,3.21,131.04,131.01,3.22]
[1765436893609,3.26842392,131.04,131.01,3.27263076]
[1765436899118,3.25,131.03,131.01,0.05263076]
[1765436902517,3.25,131.02,131.01,0.05263076]
[1765436910423,3.25,131.0,130.96,3.4]
[1765436911317,3.25,130.98,130.97,0.04824998]
[1765436913028,3.25,130.98,130.93,68.28]
[1765436913524,3.25,130.98,130.94,3.4]
[1765436914026,3.25,130.97,130.95,0.05100159]
[1765436914721,3.36,130.96,130.95,0.05100159]
[1765436937842,3.36,130.98,130.95,3.44100159]
[1765436938245,3.36,130.98,130.95,0.05100159]
[1765436939038,3.36,130.97,130.95,0.05100159]
[1765436939938,10.2314,130.97,130.95,0.05100159]
[1765436940145,3.36,130.96,130.95,0.05100159]
[1765436948958,68.26,130.96,130.95,0.05100159]
[1765436951857,3.33,130.93,130.89,3.41]
[1765436952351,3.33,130.93,130.88,68.29]
[1765436952552,3.33,130.93,130.89,3.41]
[1765436952752,3.33,130.91,130.89,3.41]
[1765436952955,3.38538471,130.91,130.89,3.46259138]
[1765436953356,0.05538471,130.91,130.89,3.46259138]
[1765436954755,0.05538471,130.91,130.89,4.98259138]
[1765436955057,0.05538471,130.91,130.9,3.41]
[1765436955957,3.38538471,130.91,130.89,3.46259138]
[1765436957350,0.05538471,130.91,130.89,3.46259138]
[1765436959562,3.42,130.94,130.9,3.22]
[1765436959963,22.5226,130.95,130.9,3.22]
[1765436960262,3.42,130.94,130.9,3.22]
[1765436960764,3.46910029,130.93,130.9,3.22]
[1765436968669,0.04910029,130.93,130.9,3.22]
[1765436969870,0.04910029,130.93,130.91,3.22]
[1765436979165,5.35,130.95,130.94,10.2528]
[1765436979474,5.31725435,130.95,130.94,12.55202706]
[1765436979678,12.64,130.97,130.96,6.8717]
[1765436979976,12.64,130.97,130.96,9.17092706]
[1765436983876,0.05196256,130.98,130.96,182.50412706]
[1765436984068,3.25,131.04,130.98,6.8704]
[1765436984268,3.25,131.04,130.99,2.29922706]
[1765436984482,3.25,131.04,131.0,67.19922706]
[1765436984682,3.25,131.06,131.01,2.29922706]
[1765436985182,3.30759175,131.05,131.02,0.04824116]
[1765436986073,5.60681881,131.05,131.02,0.04824116]
[1765436986272,3.25,131.04,131.02,0.04824116]
[1765436990578,5.54922706,131.04,131.02,0.04824116]
[1765436990781,3.25,131.03,131.02,0.04824116]
[1765437012798,3.19,131.02,130.97,6.8709]
[1765437013001,3.19,131.02,130.97,9.17012706]
[1765437013902,9.16742706,131.03,130.99,2.29922706]
[1765437013903,0.05102017,131.01,130.99,2.29922706]
[1765437014907,0.05102017,131.01,130.99,9.16932706]
[1765437016704,0.05102017,131.01,130.99,6.8701]
[1765437016904,3.36102017,131.01,130.99,6.8701]
[1765437018208,3.36102017,131.01,130.98,0.05499741]
[1765437034021,10.23022017,131.01,130.98,0.05499741]
[1765437034318,3.26,131.0,130.98,0.05499741]
[1765437040619,3.31102017,131.01,130.98,0.05499741]
[1765437041012,0.05102017,131.01,130.99,3.58595588]
[1765437041720,3.31102017,131.01,130.99,3.58595588]
[1765437041923,3.31102017,131.01,130.99,10.45605588]
[1765437044019,0.05102017,131.01,130.99,10.45605588]
[1765437046923,0.05102017,131.01,130.99,75.33605588]
[1765437053132,8.53,131.03,131.02,6.8686]
[1765437053333,8.53,131.03,131.02,71.7486]
[1765437054130,6.17215518,131.03,131.02,71.7486]
[1765437055937,5.518e-05,131.03,131.02,71.7486]
[1765437056127,3.26,131.1,131.03,106.8338]
[1765437056327,3.26,131.1,131.05,3.58595588]
[1765437056529,3.26,131.1,131.06,64.88]
[1765437057231,3.31625581,131.09,131.07,0.05467353]
[1765437062128,0.05625581,131.09,131.07,6.92037353]
[1765437064239,3.21625581,131.09,131.07,6.92037353]
[1765437064537,0.05625581,131.09,131.07,6.92037353]
[1765437069548,0.05625581,131.09,131.08,3.58595588]
[1765437072251,0.05625581,131.09,131.07,6.92037353]
[1765437073337,3.21625581,131.09,131.08,64.84]
[1765437082054,0.05625581,131.09,131.08,64.84]
[1765437082852,3.15625581,131.09,131.08,64.84]
[1765437087054,0.05625581,131.09,131.08,64.84]
[1765437092259,3.15625581,131.09,131.08,64.84]
[1765437092852,3.15625581,131.09,131.07,0.05467353]
[1765437108769,0.05625581,131.09,131.08,2.29236888]
[1765437109468,3.47625581,131.09,131.08,2.29236888]
[1765437114766,3.47625581,131.09,131.07,9.21294241]
[1765437115176,3.47625581,131.09,131.07,2.34704241]
[1765437118472,3.47625581,131.09,131.07,0.05467353]
[1765437130892,10.34125581,131.09,131.07,0.05467353]
[1765437131193,3.3,131.08,131.07,0.05467353]
[1765437131494,3.3,131.08,131.05,64.84]
[1765437132298,3.3,131.08,131.05,64.8969928]
[1765437133594,3.3,131.08,131.05,0.0569928]
[1765437138900,3.14,131.06,131.05,0.0569928]
[1765437159914,6.92155581,131.09,131.05,0.0569928]
[1765437160119,3.1,131.08,131.05,0.0569928]
[1765437164023,3.1,131.08,131.05,6.9237928]
[1765437165023,0.05625581,131.09,131.06,3.58484838]
[1765437165225,0.05625581,131.09,131.06,68.44484838]
[1765437166927,0.05625581,131.09,131.07,6.8658]
[1765437170341,0.05625581,131.09,131.07,71.7058]
[1765437171530,0.05625581,131.09,131.08,3.58484838]
[1765437173629,12.32,131.12,131.08,111.89764838]
[1765437173929,12.32,131.12,131.1,3.58484838]
[1765437174530,12.37142031,131.12,131.1,3.64143015]
[1765437174930,12.37142031,131.12,131.1,10.50563015]
[1765437175230,12.37142031,131.12,131.11,64.84]
[1765437177330,12.3151645,131.12,131.11,64.84]
[1765437177530,12.3151645,131.12,131.11,66.36]
[1765437177731,0.05142031,131.12,131.11,66.36]
[1765437180125,0.05142031,131.12,131.11,64.84]
[1765437180329,0.05142031,131.12,131.11,64.82]
[1765437185033,3.47142031,131.12,131.11,64.82]
[1765437186344,3.47142031,131.12,131.1,6.92078177]
[1765437186841,3.47142031,131.12,131.11,64.82]
[1765437195651,3.47142031,131.12,131.1,0.05658177]
[1765437201669,10.33492031,131.12,131.1,0.05658177]
[1765437201873,6.76484838,131.11,131.05,6.8667]
[1765437202173,3.18,131.1,131.05,6.8667]
[1765437202673,5.47331888,131.1,131.05,6.8667]
[1765437202864,3.23121762,131.09,131.06,0.0513547]
[1765437207369,0.05121762,131.09,131.06,2.34467358]
[1765437208874,0.05121762,131.09,131.06,9.21107358]
[1765437209771,0.05121762,131.09,131.08,2.29331888]
[1765437228486,3.18121762,131.09,131.06,0.0513547]
[1765437235692,3.18121762,131.09,131.03,64.82]
[1765437235693,3.13,131.07,131.03,64.82]
[1765437235900,5.42331888,131.07,131.01,2.29331888]
[1765437236201,3.13,131.06,131.01,2.29331888]
[1765437236697,3.13,131.06,131.02,0.04988978]
[1765437236889,3.17961893,131.05,131.02,0.04988978]
[1765437238095,16.03,131.04,131.02,0.04988978]
[1765437239795,12.9,131.04,131.03,2.29331888]
[1765437240902,0.04961893,131.05,131.04,6.8675]
[1765437241195,0.04961893,131.05,131.04,71.7075]
[1765437241404,10.94,131.07,131.06,9.15981888]
[1765437241796,10.94,131.07,131.06,10.67981888]
[1765437243504,10.94,131.07,131.06,8.3865]
[1765437243696,10.94,131.07,131.06,9.15981888]
[1765437244094,10.94,131.07,131.06,6.8665]
[1765437244298,10.94,131.07,131.06,9.15981888]
[1765437251808,0.05190166,131.08,131.06,9.15981888]
[1765437258215,0.05190166,131.08,131.06,28.0465132]
[1765437261821,0.05190166,131.08,131.07,64.82]
[1765437262716,0.05190166,131.08,131.07,68.40020453]
[1765437271427,3.45190166,131.08,131.07,64.82]
[1765437273231,0.05190166,131.08,131.07,64.82]
[1765437274227,0.05190166,131.08,131.07,68.40020453]
[1765437282130,8.26,131.12,131.11,6.8639]
[1765437282324,8.26,131.12,131.11,71.6839]
[1765437287034,8.26,131.12,131.11,75.26410453]
[1765437288046,0.04950398,131.13,131.11,75.26410453]
[1765437291449,0.04950398,131.13,131.11,94.15079885]
[1765437292048,3.17950398,131.13,131.11,6.8639]
[1765437292253,3.17950398,131.13,131.12,64.82]
[1765437300256,4.69950398,131.13,131.12,64.82]
[1765437300459,4.69950398,131.13,131.1,0.04995392]
[1765437300660,3.17950398,131.13,131.1,0.04995392]
[1765437304162,22.0,131.12,131.06,64.82]
[1765437304365,113.51840851,131.13,131.04,25.75379432]
[1765437304366,3.26,131.1,131.04,6.8671]
[1765437305058,3.26,131.09,131.02,10.44850453]
[1765437305251,3.26,131.06,131.04,0.05159103]
[1765437310267,0.04985504,131.07,131.04,10.49919556]
[1765437312265,3.39985504,131.07,131.04,0.05159103]
[1765437314563,3.39985504,131.07,131.04,3.63179556]
[1765437315871,3.39985504,131.07,131.04,10.49909556]
[1765437317773,0.04985504,131.07,131.06,3.58020453]
[1765437324695,0.04985504,131.07,131.06,2.2919257]
[1765437328182,1.39,131.09,131.07,6.866]
[1765437328388,1.39,131.09,131.08,67.1319257]
[1765437329580,3.35,131.15,131.08,67.1319257]
[1765437329803,3.35,131.15,131.1,106.7722]
[1765437330102,9.1515257,131.2,131.14,2.2919257]
[1765437330303,3.35,131.19,131.14,67.1319257]
[1765437330487,3.35,131.19,131.16,2.2919257]
[1765437330790,3.40370803,131.19,131.16,2.34433503]
[1765437331887,3.40370803,131.19,131.16,0.05240933]
[1765437332094,3.40370803,131.19,131.16,2.34433503]
[1765437333588,3.40370803,131.19,131.18,2.2919257]
[1765437334085,0.05370803,131.19,131.17,71.6805]
[1765437334290,0.05370803,131.19,131.18,2.2919257]
[1765437334691,0.05370803,131.19,131.17,71.6805]
[1765437334895,0.05370803,131.19,131.18,2.2919257]
[1765437336401,3.33,131.25,131.2,6.8591]
[1765437336595,3.33,131.25,131.22,2.2919257]
[1765437336801,3.33,131.25,131.21,64.82]
[1765437337003,3.33,131.25,131.21,67.1119257]
[1765437337308,0.05309433,131.24,131.22,6.90637051]
[1765437337504,3.33,131.27,131.24,2.2919257]
[1765437337809,3.38122804,131.27,131.24,64.82]
[1765437340205,3.38122804,131.27,131.25,2.2919257]
[1765437340400,3.38122804,131.27,131.25,2.35011277]
[1765437343012,5.67315374,131.27,131.25,0.05818707]
[1765437343212,3.33,131.26,131.25,0.05818707]
[1765437345816,3.33,131.26,131.2,64.78]
[1765437346016,3.33,131.26,131.2,67.0719257]
[1765437346910,2.2919257,131.27,131.22,0.04897981]
[1765437346911,3.38187978,131.24,131.22,0.04897981]
[1765437348418,3.38187978,131.24,131.22,2.34090551]
[1765437349426,0.05187978,131.24,131.22,2.34090551]
[1765437352826,3.38187978,131.24,131.22,2.34090551]
[1765437353016,3.38187978,131.24,131.22,0.04897981]
[1765437354617,3.38187978,131.24,131.2,64.78]
[1765437355819,3.38187978,131.24,131.21,0.04877544]
[1765437362622,3.33,131.19,131.13,2.2919257]
[1765437362822,3.33,131.19,131.15,2.2919257]
[1765437363022,3.33,131.19,131.17,2.2919257]
[1765437363627,3.38478204,131.19,131.17,2.34470375]
[1765437364121,3.38478204,131.19,131.17,0.05277805]
[1765437375020,3.38478204,131.19,131.11,106.7693]
[1765437375225,3.19,131.18,131.11,2.2919257]
[1765437375529,3.19,131.16,131.11,6.8637]
[1765437375831,3.19,131.14,131.08,64.78]
[1765437376134,3.24521315,131.12,131.1,0.05659253]
[1765437377132,0.05521315,131.12,131.1,2.34851823]
[1765437377333,0.05521315,131.12,131.1,9.21271823]
[1765437386638,0.05521315,131.12,131.1,10.4997548]
[1765437387130,14.99,131.17,131.13,6.8624]
[1765437387331,3.19,131.16,131.13,75.24136227]
[1765437388134,3.19,131.16,131.14,6.8622]
[1765437388337,0.0564166,131.16,131.14,6.91382121]
[1765437392743,3.2464166,131.16,131.14,6.91382121]
[1765437394440,3.2464166,131.16,131.14,0.05162121]
[1765437396250,0.0564166,131.16,131.14,0.05162121]
[1765437396440,0.0564166,131.16,131.14,6.91382121]
[1765437396645,3.4164166,131.16,131.14,6.91382121]
[1765437397541,3.4164166,131.16,131.14,0.05162121]
[1765437399548,0.0564166,131.16,131.14,0.05162121]
[1765437400143,0.0564166,131.16,131.14,6.91382121]
[1765437413961,3.4164166,131.16,131.14,0.05162121]
[1765437420068,0.0564166,131.16,131.14,6.91382121]
[1765437421067,0.0564166,131.16,131.14,10.49278348]
[1765437426467,0.0564166,131.16,131.14,29.3794778]
[1765437427474,0.0564166,131.16,131.15,18.88669432]
[1765437430072,0.0564166,131.16,131.15,64.8]
[1765437430472,3.4064166,131.16,131.15,64.8]
[1765437431475,0.0564166,131.16,131.15,64.8]
[1765437436484,0.0564166,131.16,131.15,68.37896227]
[1765437436683,0.0564166,131.16,131.15,87.26565659]
[1765437437881,0.0564166,131.16,131.15,64.8]
[1765437437882,3.3064166,131.16,131.15,64.8]